fUSD/lending_fUSD_20250514
["ID","MTS","AMOUNT","RATE_DAILY","PERIOD"]
[361066756,1747229440295,-400.0,0.00010976,2]
[361066757,1747229440305,-881.67,0.00010976,2]
[361066758,1747229440316,-1252.56,0.00010976,2]
[361066759,1747229440325,-400.0,0.00010976,2]
[361066760,1747229440336,-790.97,0.00010976,2]
[361066761,1747229440346,-1840.66,0.00010976,2]
[361066762,1747229440356,-3531.13,0.00010976,2]
[361066763,1747229440366,-1764.25,0.00010976,2]
[361066764,1747229440376,-1656.75,0.00010976,2]
[361066765,1747229440386,-3183.22,0.00010976,2]
[361066766,1747229440397,-1230.88,0.00010976,2]
[361066767,1747229440406,-400.0,0.00010976,2]
[361066768,1747229440415,-986.93,0.00010976,2]
[361066769,1747229440425,-922.69,0.00010976,2]
[361066770,1747229440436,-400.0,0.00010976,2]
[361066771,1747229440446,-1571.16,0.00010976,2]
[361066772,1747229440458,-1261.25,0.00010976,2]
[361066773,1747229440468,-1419.71,0.00010976,2]
[361066774,1747229440478,-2659.91,0.00010976,2]
[361066775,1747229440488,-400.0,0.00010976,2]
[361066776,1747229440498,-2259.23,0.00010976,2]
[361066777,1747229440507,-502.92,0.00010976,2]
[361066778,1747229440518,-400.0,0.00010976,2]
[361066779,1747229440528,-400.0,0.00010976,2]
[361066780,1747229440538,-2526.78,0.00010976,2]
[361066781,1747229440547,-400.55499244,0.00010976,2]
[361066782,1747229440558,-1597.81,0.00010976,2]
[361066783,1747229440567,-8296.69,0.00010976,2]
[361066784,1747229440577,-400.0,0.00010976,2]
[361066785,1747229440587,-548.86,0.00010976,2]
[361066786,1747229440597,-400.0,0.00010976,2]
[361066787,1747229440606,-1857.88,0.00010976,2]
[361066788,1747229440616,-752.4,0.00010976,2]
[361066789,1747229440626,-400.0,0.00010976,2]
[361066790,1747229440636,-400.0,0.00010976,2]
[361066791,1747229440646,-416.5,0.00010976,2]
[361066792,1747229440655,-846.96,0.00010976,2]
[361066793,1747229440665,-1469.08,0.00010976,2]
[361066794,1747229440675,-1230.55,0.00010976,2]
[361066795,1747229440684,-400.0,0.00010976,2]
[361066796,1747229440694,-6412.24,0.00010976,2]
[361066797,1747229440704,-859.65,0.00010976,2]
[361066798,1747229440714,-400.0,0.00010976,2]
[361066799,1747229440724,-3393.18,0.00010976,2]
[361066800,1747229440734,-422.13,0.00010976,2]
[361066801,1747229440744,-2258.77,0.00010976,2]
[361066802,1747229440753,-1606.62,0.00010976,2]
[361066803,1747229440763,-1606.62,0.00010976,2]
[361066804,1747229440773,-1453.16,0.00010976,2]
[361066805,1747229440783,-668.5,0.00010976,2]
[361066806,1747229440793,-400.0,0.00010976,2]
[361066807,1747229440803,-304.38052627,0.00010976,2]
[361066808,1747229440813,-1041.51,0.00010976,2]
[361066809,1747229440824,-454.66,0.00010976,2]
[361066810,1747229440836,-400.0,0.00010976,2]
[361066811,1747229440845,-1074.9,0.00010976,2]
[361066812,1747229440855,-400.0,0.00010976,2]
[361066813,1747229440864,-3887.04,0.00010976,2]
[361066814,1747229440874,-441.74,0.00010976,2]
[361066815,1747229440884,-625.08,0.00010976,2]
[361066816,1747229440893,-20904.55,0.00010976,2]
[361066817,1747229440904,-400.0,0.00010976,2]
[361066818,1747229440913,-826.53529173,0.00010976,2]
[361066819,1747229440958,-7.60470827,0.00010976,2]
[361066820,1747229440967,-2919.6,0.00010976,2]
[361066821,1747229440977,-400.0,0.00010976,2]
[361066822,1747229440987,-400.0,0.00010976,2]
[361066823,1747229440997,-400.0,0.00010976,2]
[361066824,1747229441007,-1220.97321293,0.00010976,2]
[361066825,1747229441040,-448.90257041,0.00010975,2]
[361066826,1747229441050,-208.83678707,0.00010976,2]
[361066827,1747229441060,-661.85,0.00010976,2]
[361066828,1747229441069,-515.88102406,0.00010976,2]
[361066829,1747229441081,-148.43897594,0.00010976,2]
[361066830,1747229441090,-593.06,0.00010976,2]
[361066831,1747229441100,-813.76207692,0.00010976,2]
[361066832,1747229441387,-4675.42792308,0.00010976,2]
[361066833,1747229441396,-31499.36,0.00010976,2]
[361066834,1747229441406,-400.0,0.00010976,2]
[361066835,1747229441416,-400.0,0.00010976,2]
[361066836,1747229441425,-6482.32,0.00010976,2]
[361066837,1747229441435,-507.21,0.00010976,2]
[361066838,1747229441444,-1970.49,0.00010976,2]
[361066839,1747229441456,-1556.6,0.00010976,2]
[361066840,1747229441465,-400.0,0.00010976,2]
[361066841,1747229441475,-644.9,0.00010976,2]
[361066842,1747229441484,-400.0,0.00010976,2]
[361066843,1747229441494,-2180.6,0.00010976,2]
[361066844,1747229441504,-992.87,0.00010976,2]
[361066845,1747229441513,-4531.57,0.00010976,2]
[361066846,1747229441524,-400.0,0.00010976,2]
[361066847,1747229441534,-1156.72,0.00010976,2]
[361066848,1747229441544,-411.79,0.00010976,2]
[361066849,1747229441553,-1000.0,0.00010976,2]
[361066850,1747229441563,-7101.83,0.00010976,2]
[361066851,1747229441573,-1060.48,0.00010976,2]
[361066852,1747229441583,-400.0,0.00010976,2]
[361066853,1747229441593,-400.0,0.00010977,2]
[361066854,1747229441603,-391.94827582,0.00010977,2]
[361066855,1747229441612,-400.0,0.00010977,2]
[361066856,1747229441622,-400.0,0.00010977,2]
[361066857,1747229441631,-400.0,0.00010977,2]
[361066858,1747229441640,-400.0,0.00010977,2]
[361066859,1747229441651,-400.0,0.00010977,2]
[361066860,1747229441660,-400.0,0.00010977,2]
[361066861,1747229441670,-400.0,0.00010977,2]
[361066862,1747229441679,-400.0,0.00010977,2]
[361066863,1747229441688,-400.0,0.00010977,2]
[361066864,1747229441697,-400.0,0.00010977,2]
[361066865,1747229441709,-400.0,0.00010977,2]
[361066866,1747229441718,-400.0,0.00010977,2]
[361066867,1747229441726,-400.0,0.00010977,2]
[361066868,1747229441737,-261.29285464,0.00010977,2]
[361066869,1747229441746,-471.73,0.00010977,2]
[361066870,1747229441756,-400.0,0.00010977,2]
[361066871,1747229441766,-400.0,0.00010977,2]
[361066872,1747229441776,-400.0,0.00010977,2]
[361066873,1747229441786,-400.0,0.00010977,2]
[361066874,1747229441796,-400.0,0.00010977,2]
[361066875,1747229441806,-400.0,0.00010977,2]
[361066876,1747229441816,-400.0,0.00010977,2]
[361066877,1747229441828,-176.10458796,0.00010977,2]
[361066878,1747229441837,-400.0,0.00010977,2]
[361066880,1747229441847,-400.0,0.00010977,2]
[361066881,1747229441856,-400.0,0.00010977,2]
[361066882,1747229441867,-400.0,0.00010977,2]
[361066883,1747229441875,-400.0,0.00010977,2]
[361066884,1747229441885,-400.0,0.00010977,2]
[361066885,1747229441894,-400.0,0.00010977,2]
[361066886,1747229441904,-400.0,0.00010977,2]
[361066887,1747229441914,-407.98760606,0.00010977,2]
[361066888,1747229441923,-400.0,0.00010977,2]
[361066889,1747229441932,-400.0,0.00010977,2]
[361066890,1747229441942,-400.0,0.00010977,2]
[361066891,1747229441951,-401.0639171,0.00010977,2]
[361066892,1747229441962,-421.7168297,0.00010977,2]
[361066893,1747229441972,-400.0,0.00010977,2]
[361066894,1747229441981,-400.0,0.00010977,2]
[361066895,1747229441991,-400.0,0.00010977,2]
[361066896,1747229442000,-400.0,0.00010977,2]
[361066897,1747229442009,-400.43881309,0.00010977,2]
[361066898,1747229442019,-400.0,0.00010977,2]
[361066899,1747229442028,-412.63295145,0.00010977,2]
[361066900,1747229442037,-250.0,0.00010977,2]
[361066901,1747229442047,-400.0,0.00010977,2]
[361066902,1747229442056,-400.0,0.00010977,2]
[361066903,1747229442065,-400.0,0.00010977,2]
[361066904,1747229442075,-400.20022931,0.00010977,2]
[361066905,1747229442084,-477.07722952,0.00010977,2]
[361066906,1747229442093,-400.0,0.00010977,2]
[361066907,1747229442103,-400.0,0.00010977,2]
[361066908,1747229442111,-400.0,0.00010977,2]
[361066909,1747229442121,-507.39557771,0.00010977,2]
[361066910,1747229442130,-400.0,0.00010977,2]
[361066911,1747229442139,-411.4852518,0.00010977,2]
[361066912,1747229442149,-400.0,0.00010977,2]
[361066913,1747229442158,-400.0,0.00010977,2]
[361066914,1747229442167,-400.0,0.00010977,2]
[361066915,1747229442177,-400.0,0.00010977,2]
[361066916,1747229442186,-400.0,0.00010977,2]
[361066917,1747229442195,-400.0,0.00010977,2]
[361066918,1747229442206,-400.0,0.00010977,2]
[361066919,1747229442216,-190.20575685,0.00010977,2]
[361066920,1747229442225,-400.0,0.00010977,2]
[361066921,1747229442235,-400.0,0.00010977,2]
[361066922,1747229442244,-400.0,0.00010977,2]
[361066923,1747229442253,-403.83706726,0.00010977,2]
[361066924,1747229442263,-400.0,0.00010977,2]
[361066925,1747229442273,-400.0,0.00010977,2]
[361066926,1747229442282,-400.67956545,0.00010977,2]
[361066927,1747229442292,-400.0,0.00010977,2]
[361066928,1747229442301,-400.0,0.00010977,2]
[361066929,1747229442310,-419.56772661,0.00010977,2]
[361066930,1747229442320,-400.0,0.00010977,2]
[361066931,1747229442329,-400.0,0.00010977,2]
[361066932,1747229442339,-400.0,0.00010977,2]
[361066933,1747229442348,-400.0,0.00010977,2]
[361066934,1747229442358,-400.0,0.00010977,2]
[361066935,1747229442367,-400.0,0.00010977,2]
[361066936,1747229442376,-400.0,0.00010977,2]
[361066937,1747229442386,-400.0,0.00010977,2]
[361066938,1747229442395,-400.0,0.00010977,2]
[361066939,1747229442404,-400.0,0.00010977,2]
[361066940,1747229442413,-400.0,0.00010977,2]
[361066941,1747229442423,-400.0,0.00010977,2]
[361066942,1747229442432,-400.0,0.00010977,2]
[361066943,1747229442441,-400.0,0.00010977,2]
[361066944,1747229442451,-400.0,0.00010977,2]
[361066945,1747229442463,-400.0,0.00010977,2]
[361066946,1747229442473,-400.0,0.00010977,2]
[361066947,1747229442482,-400.0,0.00010977,2]
[361066948,1747229442492,-400.0,0.00010977,2]
[361066949,1747229442502,-400.0,0.00010977,2]
[361066950,1747229442512,-400.0,0.00010977,2]
[361066951,1747229442522,-400.0,0.00010977,2]
[361066952,1747229442531,-400.0,0.00010977,2]
[361066953,1747229442541,-400.0,0.00010977,2]
[361066954,1747229442550,-400.0,0.00010977,2]
[361066955,1747229442560,-400.0,0.00010977,2]
[361066956,1747229442570,-400.0,0.00010977,2]
[361066957,1747229442580,-400.0,0.00010977,2]
[361066958,1747229442590,-435.17855083,0.00010977,2]
[361066959,1747229442599,-400.0,0.00010977,2]
[361066960,1747229442608,-400.0,0.00010977,2]
[361066961,1747229442618,-400.0,0.00010977,2]
[361066962,1747229442627,-400.0,0.00010977,2]
[361066963,1747229442637,-400.0,0.00010977,2]
[361066964,1747229442647,-400.0,0.00010977,2]
[361066965,1747229442657,-400.0,0.00010977,2]
[361066966,1747229442668,-400.0,0.00010977,2]
[361066967,1747229442679,-400.0,0.00010977,2]
[361066968,1747229442688,-400.0,0.00010977,2]
[361066969,1747229442698,-400.0,0.00010977,2]
[361066970,1747229442709,-400.0,0.00010977,2]
[361066971,1747229442719,-400.0,0.00010977,2]
[361066972,1747229442729,-581.09,0.00010977,2]
[361066973,1747229442739,-400.0,0.00010977,2]
[361066974,1747229442749,-400.0,0.00010977,2]
[361066975,1747229442759,-400.0,0.00010977,2]
[361066976,1747229442769,-554.04,0.00010977,2]
[361066977,1747229442780,-200.0,0.00010977,2]
[361066978,1747229442790,-400.0,0.00010977,2]
[361066979,1747229442799,-400.0,0.00010977,2]
[361066980,1747229442810,-400.0,0.00010977,2]
[361066981,1747229442820,-400.0,0.00010977,2]
[361066982,1747229442831,-400.0,0.00010977,2]
[361066983,1747229442841,-401.04533332,0.00010977,2]
[361066984,1747229442851,-471.85,0.00010977,2]
[361066985,1747229442861,-400.0,0.00010977,2]
[361066986,1747229442872,-1000.0,0.00010977,2]
[361066987,1747229442881,-400.0,0.00010977,2]
[361066988,1747229442891,-400.0,0.00010977,2]
[361066989,1747229442901,-400.0,0.00010977,2]
[361066990,1747229442912,-417.56,0.00010977,2]
[361066991,1747229442922,-369.92378984,0.00010977,2]
[361066992,1747229442932,-402.002299,0.00010977,2]
[361066993,1747229442941,-1014.34,0.00010977,2]
[361066994,1747229442951,-400.0,0.00010977,2]
[361066995,1747229442961,-400.0,0.00010977,2]
[361066996,1747229442970,-400.0,0.00010977,2]
[361066997,1747229442981,-400.0,0.00010977,2]
[361066998,1747229442990,-531.45,0.00010977,2]
[361066999,1747229442999,-400.0,0.00010977,2]
[361067000,1747229443009,-476.27,0.00010977,2]
[361067001,1747229443018,-372.3805233,0.00010977,2]
[361067002,1747229443028,-400.0,0.00010977,2]
[361067003,1747229443037,-400.0,0.00010977,2]
[361067004,1747229443047,-560.35,0.00010977,2]
[361067005,1747229443056,-400.0,0.00010977,2]
[361067006,1747229443066,-513.12,0.00010977,2]
[361067007,1747229443076,-980.97,0.00010977,2]
[361067010,1747229443085,-400.0,0.00010977,2]
[361067012,1747229443094,-454.72340144,0.00010977,2]
[361067014,1747229443103,-461.35968127,0.00010977,2]
[361067015,1747229443112,-400.0,0.00010977,2]
[361067016,1747229443121,-400.0,0.00010977,2]
[361067017,1747229443130,-400.0,0.00010977,2]
[361067019,1747229443138,-604.24,0.00010977,2]
[361067020,1747229443147,-400.0,0.00010977,2]
[361067021,1747229443157,-400.0,0.00010977,2]
[361067022,1747229443166,-471.09,0.00010977,2]
[361067023,1747229443176,-400.0,0.00010977,2]
[361067024,1747229443186,-400.0,0.00010977,2]
[361067025,1747229443195,-683.07,0.00010977,2]
[361067027,1747229443205,-400.0,0.00010977,2]
[361067028,1747229443215,-400.0,0.00010977,2]
[361067029,1747229443225,-412.07083348,0.00010977,2]
[361067030,1747229443235,-400.0,0.00010977,2]
[361067031,1747229443244,-499.14,0.00010977,2]
[361067032,1747229443254,-424.98922152,0.00010977,2]
[361067033,1747229443264,-577.47,0.00010977,2]
[361067034,1747229443274,-400.0,0.00010977,2]
[361067035,1747229443284,-400.0,0.00010977,2]
[361067036,1747229443294,-588.5,0.00010977,2]
[361067037,1747229443303,-400.0,0.00010977,2]
[361067038,1747229443313,-400.0,0.00010977,2]
[361067039,1747229443323,-400.0,0.00010977,2]
[361067040,1747229443332,-400.0,0.00010977,2]
[361067041,1747229443342,-400.0,0.00010977,2]
[361067042,1747229443352,-438.81741246,0.00010977,2]
[361067043,1747229443362,-400.0,0.00010977,2]
[361067044,1747229443372,-400.0,0.00010977,2]
[361067045,1747229443381,-400.0,0.00010977,2]
[361067046,1747229443391,-409.96,0.00010977,2]
[361067047,1747229443401,-604.51,0.00010977,2]
[361067048,1747229443411,-400.0,0.00010977,2]
[361067049,1747229443421,-400.0,0.00010977,2]
[361067050,1747229443431,-403.37008786,0.00010977,2]
[361067051,1747229443440,-423.82019992,0.00010977,2]
[361067052,1747229443449,-400.0,0.00010977,2]
[361067053,1747229443460,-452.74,0.00010977,2]
[361067054,1747229443470,-400.0,0.00010977,2]
[361067055,1747229443479,-400.0,0.00010977,2]
[361067056,1747229443489,-529.33911246,0.00010977,2]
[361067057,1747229443499,-400.0,0.00010977,2]
[361067058,1747229443509,-400.0,0.00010977,2]
[361067059,1747229443519,-714.5,0.00010977,2]
[361067063,1747229443811,-857.81,0.00010977,2]
[361067064,1747229443824,-435.52,0.00010977,2]
[361067067,1747229443838,-400.0,0.00010977,2]
[361067068,1747229443848,-1021.88,0.00010977,2]
[361067069,1747229443858,-400.0,0.00010977,2]
[361067070,1747229443870,-400.0,0.00010977,2]
[361067071,1747229443880,-504.33870394,0.00010977,2]
[361067072,1747229443890,-684.84,0.00010977,2]
[361067073,1747229443900,-400.0,0.00010977,2]
[361067074,1747229443911,-751.98,0.00010977,2]
[361067075,1747229443921,-400.0,0.00010977,2]
[361067076,1747229443931,-400.0,0.00010977,2]
[361067077,1747229443940,-1779.76,0.00010977,2]
[361067078,1747229443950,-400.0,0.00010977,2]
[361067079,1747229443960,-419.5,0.00010977,2]
[361067080,1747229443969,-400.0,0.00010977,2]
[361067081,1747229443979,-400.0,0.00010977,2]
[361067082,1747229443989,-400.0,0.00010977,2]
[361067083,1747229443999,-400.0,0.00010977,2]
[361067084,1747229444009,-400.0,0.00010977,2]
[361067085,1747229444018,-548.23,0.00010977,2]
[361067086,1747229444028,-407.56,0.00010977,2]
[361067087,1747229444037,-500.0,0.00010977,2]
[361067088,1747229444047,-400.0,0.00010977,2]
[361067089,1747229444056,-858.61,0.00010977,2]
[361067090,1747229444066,-400.0,0.00010977,2]
[361067091,1747229444076,-400.0,0.00010977,2]
[361067092,1747229444086,-400.0,0.00010977,2]
[361067093,1747229444095,-616.31,0.00010977,2]
[361067094,1747229444105,-400.0,0.00010977,2]
[361067095,1747229444115,-400.0,0.00010977,2]
[361067096,1747229444125,-400.0,0.00010977,2]
[361067097,1747229444135,-400.0,0.00010977,2]
[361067098,1747229444144,-400.0,0.00010977,2]
[361067099,1747229444154,-400.0,0.00010977,2]
[361067100,1747229444163,-2452.85,0.00010977,2]
[361067101,1747229444174,-159.99681117,0.00010977,2]
[361067102,1747229444184,-400.0,0.00010977,2]
[361067103,1747229444194,-400.0,0.00010977,2]
[361067104,1747229444203,-190.71133694,0.00010977,2]
[361067105,1747229444214,-468.05,0.00010977,2]
[361067106,1747229444223,-428.36,0.00010977,2]
[361067107,1747229444233,-401.22,0.00010977,2]
[361067108,1747229444243,-975.35,0.00010977,2]
[361067109,1747229444252,-1291.13,0.00010977,2]
[361067110,1747229444262,-318.2806997,0.00010977,2]
[361067111,1747229444272,-400.0,0.00010977,2]
[361067112,1747229444282,-400.0,0.00010977,2]
[361067113,1747229444292,-400.0,0.00010977,2]
[361067114,1747229444301,-400.0,0.00010977,2]
[361067115,1747229444310,-400.0,0.00010977,2]
[361067116,1747229444319,-400.0,0.00010977,2]
[361067117,1747229444329,-400.0,0.00010977,2]
[361067118,1747229444338,-493.19,0.00010977,2]
[361067119,1747229444347,-400.0,0.00010977,2]
[361067120,1747229444357,-400.0,0.00010977,2]
[361067121,1747229444366,-400.0,0.00010977,2]
[361067122,1747229444376,-400.0,0.00010977,2]
[361067123,1747229444386,-687.29,0.00010977,2]
[361067124,1747229444395,-400.0,0.00010977,2]
[361067125,1747229444405,-400.0,0.00010977,2]
[361067126,1747229444415,-400.0,0.00010977,2]
[361067127,1747229444424,-400.0,0.00010977,2]
[361067128,1747229444433,-400.0,0.00010977,2]
[361067129,1747229444443,-400.0,0.00010977,2]
[361067130,1747229444453,-400.0,0.00010977,2]
[361067131,1747229444463,-400.0,0.00010977,2]
[361067132,1747229444473,-400.0,0.00010977,2]
[361067133,1747229444483,-564.48,0.00010977,2]
[361067134,1747229444493,-400.0,0.00010977,2]
[361067135,1747229444503,-400.0,0.00010977,2]
[361067136,1747229444513,-400.0,0.00010977,2]
[361067137,1747229444522,-400.0,0.00010977,2]
[361067138,1747229444532,-400.0,0.00010977,2]
[361067139,1747229444542,-400.0,0.00010977,2]
[361067140,1747229444552,-400.0,0.00010977,2]
[361067141,1747229444562,-400.0,0.00010977,2]
[361067142,1747229444571,-400.0,0.00010977,2]
[361067143,1747229444581,-400.0,0.00010977,2]
[361067144,1747229444591,-400.0,0.00010977,2]
[361067145,1747229444601,-400.0,0.00010977,2]
[361067146,1747229444611,-400.0,0.00010977,2]
[361067147,1747229444622,-400.0,0.00010977,2]
[361067148,1747229444631,-588.67,0.00010977,2]
[361067149,1747229444641,-400.0,0.00010977,2]
[361067150,1747229444651,-400.0,0.00010977,2]
[361067151,1747229444661,-400.0,0.00010977,2]
[361067152,1747229444670,-400.0,0.00010977,2]
[361067153,1747229444680,-400.0,0.00010977,2]
[361067154,1747229444690,-400.0,0.00010977,2]
[361067155,1747229444700,-400.0,0.00010977,2]
[361067156,1747229444711,-400.0,0.00010977,2]
[361067157,1747229444721,-400.0,0.00010977,2]
[361067158,1747229444731,-400.0,0.00010977,2]
[361067159,1747229444741,-400.18340336,0.00010977,2]
[361067160,1747229444751,-400.0,0.00010977,2]
[361067161,1747229444761,-400.0,0.00010977,2]
[361067162,1747229444770,-400.0,0.00010977,2]
[361067163,1747229444781,-384.78366566,0.00010977,2]
[361067164,1747229444791,-400.0,0.00010977,2]
[361067165,1747229444801,-464.64,0.00010977,2]
[361067166,1747229444811,-400.0,0.00010977,2]
[361067167,1747229444821,-400.0,0.00010977,2]
[361067168,1747229444833,-427.4,0.00010977,2]
[361067169,1747229444843,-400.0,0.00010977,2]
[361067170,1747229444854,-903.66,0.00010977,2]
[361067171,1747229444864,-400.0,0.00010977,2]
[361067172,1747229444874,-479.96,0.00010977,2]
[361067173,1747229444884,-400.0,0.00010977,2]
[361067174,1747229444894,-400.0,0.00010977,2]
[361067175,1747229444906,-514.03,0.00010977,2]
[361067176,1747229444917,-400.56,0.00010977,2]
[361067177,1747229444927,-400.0,0.00010977,2]
[361067178,1747229444937,-400.0,0.00010977,2]
[361067179,1747229444947,-400.0,0.00010977,2]
[361067180,1747229444957,-360.71278295,0.00010977,2]
[361067181,1747229444967,-500.0,0.00010977,2]
[361067182,1747229444977,-408.2,0.00010977,2]
[361067183,1747229444987,-701.9,0.00010977,2]
[361067184,1747229444996,-400.0,0.00010977,2]
[361067185,1747229445006,-832.14,0.00010977,2]
[361067186,1747229445015,-674.69,0.00010977,2]
[361067187,1747229445025,-400.0,0.00010977,2]
[361067188,1747229445035,-400.0,0.00010977,2]
[361067189,1747229445045,-609.59,0.00010977,2]
[361067190,1747229445054,-546.53,0.00010977,2]
[361067191,1747229445063,-400.0,0.00010977,2]
[361067192,1747229445073,-400.0,0.00010977,2]
[361067193,1747229445083,-400.0,0.00010977,2]
[361067194,1747229445093,-400.0,0.00010977,2]
[361067195,1747229445102,-482.73,0.00010977,2]
[361067196,1747229445112,-400.0,0.00010977,2]
[361067197,1747229445121,-400.0,0.00010977,2]
[361067198,1747229445131,-269.77,0.00010977,2]
[361067199,1747229445140,-443.86066433,0.00010977,2]
[361067200,1747229445150,-400.0,0.00010977,2]
[361067201,1747229445159,-892.47,0.00010977,2]
[361067202,1747229445169,-553.34,0.00010977,2]
[361067203,1747229445178,-400.0,0.00010977,2]
[361067204,1747229445188,-329.5340329,0.00010977,2]
[361067205,1747229445198,-400.0,0.00010977,2]
[361067206,1747229445207,-400.0,0.00010977,2]
[361067207,1747229445217,-400.0,0.00010977,2]
[361067208,1747229445227,-773.53,0.00010977,2]
[361067209,1747229445237,-400.0,0.00010977,2]
[361067210,1747229445246,-588.32,0.00010977,2]
[361067211,1747229445256,-400.0,0.00010977,2]
[361067212,1747229445265,-1881.46,0.00010977,2]
[361067213,1747229445275,-400.0,0.00010977,2]
[361067214,1747229445284,-400.0,0.00010977,2]
[361067215,1747229445294,-863.78,0.00010977,2]
[361067216,1747229445304,-1655.42,0.00010977,2]
[361067217,1747229445314,-400.0,0.00010977,2]
[361067218,1747229445323,-400.0,0.00010977,2]
[361067219,1747229445333,-400.0,0.00010977,2]
[361067220,1747229445342,-1608.52,0.00010977,2]
[361067221,1747229445351,-230.70605791,0.00010977,2]
[361067222,1747229445361,-400.0,0.00010977,2]
[361067223,1747229445370,-865.86,0.00010977,2]
[361067224,1747229445380,-1700.57,0.00010977,2]
[361067225,1747229445390,-707.78,0.00010977,2]
[361067226,1747229445400,-1193.54,0.00010977,2]
[361067227,1747229445410,-771.88,0.00010977,2]
[361067228,1747229445420,-400.0,0.00010977,2]
[361067229,1747229445430,-400.0,0.00010977,2]
[361067230,1747229445439,-400.0,0.00010977,2]
[361067231,1747229445449,-400.0,0.00010977,2]
[361067232,1747229445461,-400.0,0.00010977,2]
[361067233,1747229445472,-400.0,0.00010977,2]
[361067234,1747229445483,-400.0,0.00010977,2]
[361067235,1747229445493,-400.0,0.00010977,2]
[361067236,1747229445502,-400.0,0.00010977,2]
[361067237,1747229445513,-400.0,0.00010977,2]
[361067238,1747229445523,-7252.15,0.00010977,2]
[361067239,1747229445534,-400.0,0.00010977,2]
[361067240,1747229445544,-811.52,0.00010977,2]
[361067241,1747229445553,-400.0,0.00010977,2]
[361067242,1747229445563,-400.0,0.00010977,2]
[361067243,1747229445574,-980.65,0.00010977,2]
[361067244,1747229445584,-400.0,0.00010977,2]
[361067245,1747229445594,-1402.03,0.00010977,2]
[361067246,1747229445603,-400.0,0.00010977,2]
[361067247,1747229445614,-903.95,0.00010977,2]
[361067248,1747229445623,-400.0,0.00010977,2]
[361067249,1747229445632,-997.09,0.00010977,2]
[361067250,1747229445642,-400.0,0.00010977,2]
[361067251,1747229445651,-690.77,0.00010977,2]
[361067252,1747229445660,-400.0,0.00010977,2]
[361067253,1747229445671,-400.0,0.00010977,2]
[361067254,1747229445681,-358.75720003,0.00010977,2]
[361067255,1747229445691,-400.0,0.00010977,2]
[361067256,1747229445701,-400.0,0.00010977,2]
[361067257,1747229445712,-400.0,0.00010977,2]
[361067258,1747229445722,-400.0,0.00010977,2]
[361067259,1747229445732,-9691.21,0.00010977,2]
[361067260,1747229445742,-400.0,0.00010977,2]
[361067261,1747229445752,-400.0,0.00010977,2]
[361067262,1747229445762,-670.93,0.00010977,2]
[361067263,1747229445772,-400.0,0.00010977,2]
[361067264,1747229445782,-638.81,0.00010977,2]
[361067265,1747229445792,-433.73,0.00010977,2]
[361067266,1747229445802,-400.0,0.00010977,2]
[361067267,1747229445811,-1413.76,0.00010977,2]